Cogmind - Beta 14 @@@ ROGUE MODE // 2024.08.22 @ 19:44:41 Player: AppleSource Result: Destroyed by UO-AZC(R) with Subdweller Machine Gun Performance ------------- Evolutions (0) 0 Regions Visited (3) 600 Robots Destroyed (4) 20 Value Destroyed (64) 64 Prototype IDs (1) 20 Alien Tech Used (0) 0 Bonus (0) 0 TOTAL SCORE: 704 Bonus ------- None Cogmind --------- Core Integrity 0/250 Matter 300/300 Energy 100/100 System Corruption 0% Temperature Cool (0) Movement Core (100) Ox1 Location -10/Subcaves Parts ------- > --- POWER (1) -------- (None) > --- PROPULSION (2) --- (None) > --- UTILITY (2) ------ Small Storage Unit Experimental Sensor Array > --- WEAPON (2) ------- (None) > --- INVENTORY (8) ---- Light Ion Engine Structural Scanner Propulsion Shielding Light Armor Plating Medium Laser Assault Rifle Mining Laser Peak State ------------ > --- POWER ------------ Ion Engine > --- PROPULSION ------- Light Treads Light Treads > --- UTILITY ---------- Small Storage Unit Experimental Sensor Array > --- WEAPON ----------- Grenade Launcher Rocket Launcher > --- INVENTORY -------- Light Ion Engine Structural Scanner Propulsion Shielding Light Armor Plating Medium Laser Assault Rifle Mining Laser [Rating: 16] Favorites ----------- Power Ion Engine Engine Ion Engine Propulsion Light Treads Treads Light Treads Utility Small Storage Unit Device Experimental Sensor Array Storage Small Storage Unit Protection Light Armor Plating Weapon Assault Rifle Energy Gun Medium Laser Ballistic Gun Assault Rifle Launcher Rocket Launcher Build | -11 -10 -10 -10 ------- Run | Yrd Mat Min Sub Slots Evolved . | . . . . Power . | . . . . Propulsion . | . . . . Utility . | . . . . Weapon . | . . . . Parts Attached 11 | 6 2 . 3 Power 1 | 1 . . . Engine 1 | 1 . . . Core . | . . . . Reactor . | . . . . Propulsion 2 | 2 . . . Treads 2 | 2 . . . Leg . | . . . . Wheel . | . . . . Hover . | . . . . Flight . | . . . . Utility 4 | 1 2 . 1 Device 1 | . . . 1 Storage 1 | 1 . . . Processor . | . . . . Hackware . | . . . . Protection 2 | . 2 . . Artifact . | . . . . Weapon 4 | 2 . . 2 Energy Gun 1 | 1 . . . Energy Cannon . | . . . . Ballistic Gun 1 | 1 . . . Ballistic Cannon . | . . . . Launcher 2 | . . . 2 Special Weapon . | . . . . Impact Weapon . | . . . . Slashing Weapon . | . . . . Piercing Weapon . | . . . . Special Melee Weapon . | . . . . Unidentified Prototypes 1 | . . . 1 Parts Lost 5 | . . . 5 Power 1 | . . . 1 Propulsion 2 | . . . 2 Utility . | . . . . Weapon 2 | . . . 2 Highest Loss Streak 3 | . . . 3 To Critical Strikes 1 | . . . 1 Average Slot Usage (%) 95 | . 91 100 83 Engine 13 | . 14 14 9 Treads 27 | . 28 28 23 Device 2 | . . . 14 Storage 14 | . 14 14 14 Protection 9 | . 6 14 . Energy Gun 11 | . 14 14 . Ballistic Gun 11 | . 14 14 . Launcher 3 | . . . 21 Peak Build Rating 16 | 6 7 8 16 Average Rating 8 | 4 6 7 14 On Entrance 5 | . 6 7 8 Naked Turns . | . . . . Heaviest Build 18 | 14 17 17 18 Greatest Support 40 | 40 40 40 40 Greatest Overweight (x) 3 | 2 . . 3 Average Overweight (x) . | . . . . Largest Inventory Capacity 8 | 8 8 8 8 Average Capacity 7 | 7 8 8 8 Most Carried 8 | 1 3 7 8 Average Carried 4 | . 2 5 7 Final Capacity 8 | 8 8 8 8 Final Carried 7 | 1 3 7 7 Class Distribution -------------------- 100% | Mutant Dominant Class ---------------- Mutant | -10/Materials Mutant | -10/Mines Mutant | -10/Subcaves Resources | -11 -10 -10 -10 ----------- Run | Yrd Mat Min Sub Matter Collected 310 | 72 46 106 86 Remotely . | . . . . Salvage Created 86 | . 46 40 . Parts 6 | . 2 4 . Haulers Intercepted . | . . . . Recyclers Shooed . | . . . . Parts Field Recycled . | . . . . Retrieved Matter . | . . . . Parts Self-Destructed . | . . . . Prevented . | . . . . Kills | -11 -10 -10 -10 ------- Run | Yrd Mat Min Sub Combat Hostiles Destroyed 4 | . 1 3 . Guns 4 | . 1 3 . Classes Destroyed 2 | . 1 1 . Swarmer 3 | . . 3 . Grunt 1 | . 1 . . Best Kill Streak 3 | . 1 3 . Combat Bots Only 3 | . 1 3 . Max Kills in Single Turn 1 | . 1 1 . Gunslinging . | . . . . Exploded . | . . . . Melee . | . . . . Uniques/NPCs Destroyed . | . . . . Combat | -11 -10 -10 -10 -------- Run | Yrd Mat Min Sub Hostile Shots Fired 66 | . 3 12 51 Missed 23 | . 1 2 20 Damage Taken 863 | . 22 81 760 Core 250 | . . 20 230 Absorbed by Shields . | . . . . Core Remaining (%) 100 | 100 . . . Volleys Fired 10 | . 2 7 1 Largest 2 | . 2 2 1 Hottest 70 | . 70 70 33 Shots Fired 19 | . 4 14 1 Gun 18 | . 4 14 . Cannon . | . . . . Launcher 1 | . . . 1 Special . | . . . . Kinetic 9 | . 2 7 . Thermal 9 | . 2 7 . Explosive 1 | . . . 1 Electromagnetic . | . . . . Robot Hit Streak 4 | . 4 2 2 Robot Miss Streak 3 | . . 3 . Penetration Max . | . . . . Secondary Targets . | . . . . Shots Hit Robots 10 | . 4 5 1 Core Hits 6 | . 2 4 . Critical Kills . | . . . . Critical Parts Destroyed . | . . . . Critical Strikes 1 | . . 1 . Burn 1 | . . 1 . Melee Attacks . | . . . . Impact . | . . . . Slashing . | . . . . Piercing . | . . . . Sneak Attacks . | . . . . Combat Hostiles . | . . . . Follow-up Attacks . | . . . . Damage Inflicted 167 | . 55 71 41 Guns 105 | . 48 57 . Cannons . | . . . . Explosions 41 | . . . 41 Melee . | . . . . Ramming 21 | . 7 14 . Kinetic 55 | . 22 33 . Thermal 50 | . 26 24 . Explosive 41 | . . . 41 Electromagnetic . | . . . . Impact . | . . . . Slashing . | . . . . Piercing . | . . . . Highest Corruption . | . . . . Average Corruption . | . . . . Corruption Purged . | . . . . Corruption Blocked . | . . . . Overload Shots . | . . . . Overflow Damage . | . . . . Projectiles . | . . . . Explosions . | . . . . Melee . | . . . . Knockbacks . | . . . . Impact . | . . . . Kinetic . | . . . . Secondary . | . . . . Self-Inflicted Damage . | . . . . Shots . | . . . . Rammed 5 | . 3 2 . Targets Rammed 5 | . 3 2 . Kicked . | . . . . Crushed . | . . . . Highest Temperature 126 | . 18 126 . Average Temperature 55 | . 10 65 . Received Heat Transfer 108 | . 12 . 96 Siege Activations . | . . . . Robots Corrupted . | . . . . Combat Hostiles . | . . . . Parts Fried . | . . . . Impact Corruptions . | . . . . Robots Melted . | . . . . Combat Hostiles . | . . . . Parts Melted 2 | . . 2 . Heat Transferred 222 | . 74 148 . Parts Sabotaged . | . . . . Parts Stolen . | . . . . Parts Stripped . | . . . . Power Chain Reactions . | . . . . Alert | -11 -10 -10 -10 ------- Run | Yrd Mat Min Sub Peak Influence 70 | . 49 70 . Initial . | . . . . Average 20 | . 33 16 . Maximum Alert Level . | . . . . Low Security (%) 100 | 100 100 100 . Level 1 . | . . . . Level 2 . | . . . . Level 3 . | . . . . Level 4 . | . . . . Level 5 . | . . . . High Security . | . . . . Max Security . | . . . . Squads Dispatched . | . . . . Investigation . | . . . . Extermination . | . . . . Reinforcement . | . . . . Assault . | . . . . Garrison . | . . . . Intercept . | . . . . Searches Triggered . | . . . . Construction Impeded . | . . . . Haulers Reinforced . | . . . . Active Scanning Responses . | . . . . Cargo Convoy Interrupts . | . . . . Stealth | -11 -10 -10 -10 --------- Run | Yrd Mat Min Sub Distress Signals 1 | . 1 . . Communications Jammed . | . . . . Distress Signals . | . . . . Times Spotted 15 | . 3 3 9 Peak Tracking Total 5 | . 3 3 5 Tactical Retreats . | . . . . Traps | -11 -10 -10 -10 ------- Run | Yrd Mat Min Sub Traps Triggered . | . . . . Indirectly . | . . . . Trap Hack Attempts . | . . . . Triggered . | . . . . Disarmed . | . . . . Reprogrammed . | . . . . Reused . | . . . . Traps Extracted . | . . . . Installed . | . . . . Triggered . | . . . . Machines | -11 -10 -10 -10 ---------- Run | Yrd Mat Min Sub Machines Disabled . | . . . . Max in Single Turn . | . . . . Machines Repaired . | . . . . Machines Dismantled . | . . . . Machines Sabotaged . | . . . . Overloaded Fab Kills . | . . . . Hacking | -11 -10 -10 -10 --------- Run | Yrd Mat Min Sub Machines Accessed 2 | . 1 . 1 Terminals 1 | . 1 . . Fabricators . | . . . . Repair Stations . | . . . . Recycling Units . | . . . . Scanalyzers . | . . . . Garrison Access . | . . . . Total Hacks 5 | . 1 . 4 Successful 5 | . 1 . 4 Failed . | . . . . Catastrophic . | . . . . Database Lockouts . | . . . . Manual . | . . . . Terminals 1 | . 1 . . Fabricators . | . . . . Repair Stations . | . . . . Recycling Units . | . . . . Scanalyzers . | . . . . Garrison Access . | . . . . Terminal Hacks 5 | . 1 . 4 Record 4 | . . . 4 Hauler Manifests 1 | . 1 . . Fabricator Hacks . | . . . . Repair Station Hacks . | . . . . Recycling Unit Hacks . | . . . . Scanalyzer . | . . . . Garrison Access Hacks . | . . . . Unauthorized Hacks . | . . . . Terminals . | . . . . Fabricators . | . . . . Repair Stations . | . . . . Recycling Units . | . . . . Scanalyzers . | . . . . Garrison Access . | . . . . Data Cores Recovered . | . . . . Used . | . . . . Hacking Detections 1 | . 1 . . Full Trace Events . | . . . . Feedback Events . | . . . . Feedback Blocked . | . . . . Robot Schematics Acquired . | . . . . Robots Built . | . . . . Authchips . | . . . . Time . | . . . . Total Robot Build Rating . | . . . . Part Schematics Acquired . | . . . . Parts Built . | . . . . Authchips . | . . . . Time . | . . . . Total Part Build Rating . | . . . . Parts Repaired . | . . . . Time . | . . . . Parts Recycled . | . . . . Recycled Matter . | . . . . Retrieved Matter . | . . . . Retrieved Components . | . . . . Parts Scanalyzed . | . . . . Part Schematics Acquired . | . . . . Parts Damaged . | . . . . Bothacking | -11 -10 -10 -10 ------------ Run | Yrd Mat Min Sub Used RIF Installer . | . . . . Robots Hacked . | . . . . Non-combat . | . . . . Combat . | . . . . Robot Hacks Applied . | . . . . Relay Couplers Released . | . . . . Fabnet Peak Effective % . | . . . . Robots Rewired . | . . . . Allies Hacked . | . . . . Hacks Repelled . | . . . . Allies | -11 -10 -10 -10 -------- Run | Yrd Mat Min Sub Total Allies 1 | . . 1 . Largest Group 1 | . . 1 . Highest-Rated Group 31 | . . 31 . Highest-Rated Ally 31 | . . 31 . Total Orders . | . . . . Ally Attacks . | . . . . Total Damage . | . . . . Kills . | . . . . Allies Corrupted . | . . . . Allies Melted . | . . . . Intel | -11 -10 -10 -10 ------- Run | Yrd Mat Min Sub Robot Analysis Total . | . . . . Derelict Logs Recovered 3 | . . 3 . Drone Launches . | . . . . Drone Recoveries . | . . . . Exploration | -11 -10 -10 -10 ------------- Run | Yrd Mat Min Sub Turns Passed 1655 | 61 437 895 262 Spaces Moved 917 | 35 260 474 148 Core 42 | 8 . . 34 Treads 875 | 27 260 474 114 Legs . | . . . . Wheels . | . . . . Hover . | . . . . Flight . | . . . . Fastest Speed 50 | 50 160 160 100 Average Speed 157 | 147 160 160 147 Slowest Speed 200 | 160 160 160 200 Overloaded Moves . | . . . . Propulsion Burnouts . | . . . . Robots Hopped . | . . . . Cave-ins Triggered . | . . . . Exploration Rate (%) 37 | 3 37 95 13 Regions Visited 3 Branch Regions 2 Pre-discovered Areas 1 | . . 1 . Known Exits Taken . | . . . . Unknown Exits Taken 3 | 1 1 1 . Scrap Searched 1 | . . 1 . Spaces Dug . | . . . . Terrain Destroyed 11 | . . . 11 Melee . | . . . . Projectile . | . . . . AOE 11 | . . . 11 Terrain Rammed . | . . . . Walls Destroyed . | . . . . Machines Disabled . | . . . . Actions | -11 -10 -10 -10 --------- Run | Yrd Mat Min Sub Total 1104 | 41 275 596 192 Wait 154 | . 7 110 37 Move 914 | 34 259 473 148 Hop . | . . . . Pick Up 6 | 1 1 4 . Fast Attach 8 | 6 2 . . Attach 3 | . . . 3 Detach 4 | . 1 . 3 Swap . | . . . . Drop . | . . . . Fire 10 | . 2 7 1 Melee . | . . . . Ram . | . . . . Kick . | . . . . Crush 5 | . 3 2 . Escape Stasis . | . . . . Rewire . | . . . . Trap . | . . . . Miscellaneous . | . . . . Route ------- -11/Scrapyard -10/Materials (discovered 2 exits: [*Mat] / [*Min]) -10/Mines (discovered 3 exits: [*Mat x2] / *Sub) -10/Subcaves (discovered 3 exits: Mat x2 / Rec) History --------- Turn | Location | Event 44 | -11/Scrapyard | Discovered new exit (range 12) 62 | -11/Scrapyard | Entered Materials 325 | -10/Materials | Build established: Mutant 363 | -10/Materials | Discovered new exit (range 15) 401 | -10/Materials | Discovered new exit (range 15) 499 | -10/Materials | Entered Mines 502 | -10/Mines | Received a Mining Laser from a helpful Derelict 574 | -10/Mines | Found a damaged Exp. Sensor Array with a note attached 578 | -10/Mines | Found Prototype Device 699 | -10/Mines | Learned location of Zion (-7) 726 | -10/Mines | Learned Materials stockpile data 761 | -10/Mines | Learned location of 1 exit from Materials 847 | -10/Mines | Discovered new exit (range 15) 1011 | -10/Mines | Received a Rocket Launcher from a helpful Derelict 1197 | -10/Mines | Discovered new exit (range 5) 1386 | -10/Mines | Discovered new exit (range 5) 1394 | -10/Mines | Entered Subcaves 1397 | -10/Subcaves | Identified Exp. Sensor Array 1458 | -10/Subcaves | Visited Clippyterm 1463 | -10/Subcaves | Identified exit to Materials 1463 | -10/Subcaves | Identified exit to Recycling 1463 | -10/Subcaves | Learned Factory fabricator intel 1555 | -10/Subcaves | Ambushed by Subdweller buried in earth 1557 | -10/Subcaves | Ambushed by Subdweller buried in earth 1557 | -10/Subcaves | Ambushed by Subdweller buried in earth 1575 | -10/Subcaves | Core integrity fell below 50% 1655 | -10/Subcaves | Lost 3 parts (2n1w) 1655 | -10/Subcaves | Core integrity fell below 20% 1656 | -10/Subcaves | Destroyed by UO-AZC(R) with Subdweller Machine Gun Last Messages --------------- It looks like you're after the notorious thief from 0b1. I don't know where they are, but my data indicates that someone they're looking for is frequently seen in Scraptown. OQ-OF5(R): "ARGHSUB!" 13-4VR(R): "HIDIE!" 9G-P9N(R): "SLEEPOVER!" The unstable cave ceiling collapses. G3-PLF(R) destroyed. E0-HW3(R): "ARGHSUB!" 7L-13T(O) collects matter. Grenade Launcher destroyed. Critical hit (Destroy). Ion Engine destroyed. Subatomizers dissect the Sub. Monowheel. 7L-13T(O) collects matter. Subatomizers dissect the Sub. Monowheel. 7L-13T(O) puts together Sub. Laser. Acquired 9 matter. OQ-OF5(R) destroyed. Lgt. Treads destroyed. Rocket Launcher destroyed. Map ----- +----------------------------------------------------+ | ?????????????????????????????????????????????????? | | ?????????????????????????????????????????????????? | | ?????????????????????????????????????????????????? | | ?????????????????????????????????????????????????? | | ?????????????????????????????????????????????????? | | ?????????????????????????????????????????????????? | | ?????????????????????????????????????????????????? | | ?????????????????????????????????????????????????? | | ?????????????????????????????????????????????????? | | ?????????????????????????????????????????????????? | | ?????????????????????????????????????????????????? | | ?????????????????????????????????????????????????? | | ?????????????????????????????????????????????????? | | ?????????????????????????????????????????????????? | | ?????????????????????????????????????????????????? | | ?????????????????????????????????????????????????? | | ?????????????????????????????????????????????????? | | ?????????????????????????????????##?####?????????? | | ????????????????????????????????# ## ##????????? | | ??????????????????????????####### ##???????? | | ?????????????????????????## #$ # ##???#??? | | ????????????????????????## #??# ?? | | ???????????????##??????## #?# ?? | | ??????????????## ???# #?# ##? ?? | | ??????????????# ## ;### #?# #? | | ??????????????# @ ## #?? # | | ???????????????# #????????# | | ???????????????## ##????????# | | ????????????????# # #??????????# | | ????????????????# ## #???????????# | | ????????????????## #### ##??????##### | | ?????????????????### R ##??## ##?##### ## | | ???????????????????## R ##?#### ###? | | ????????????????????## #?## ? ? | | ?????????????????????## ### | | ??????????????????????# ## | | ?????????????????????? ## | | ????????????????????? ### | | ???????????????????? ##??# | | ????????????????????? #????# ### | | ??????????????????????#?????# #??# ## | | ????????????????????????????##???# ####### | | ?????????????????????????????????## ###?????# # | | ??????????????????????????????????####???????# ### | | ?????????????????????????????????????????????###?? | | ?????????????????????????????????????????????????? | | ?????????????????????????????????????????????????? | | ?????????????????????????????????????????????????? | | ?????????????????????????????????????????????????? | | ?????????????????????????????????????????????????? | +----------------------------------------------------+ Best States ------------- Heat Dissipation 25 Energy Generation 10 Energy Capacity 250 Matter Stores 300 Matter Capacity 300 Sight Range 16 Robot Scan Range 20 Terrain Scan Density 10 Armor Coverage 150 Propulsion Shielding 33 Evasion (%) 40 Recoil Reduction 2 Item Schematics ----------------- None Robot Schematics ------------------ None Fabricated ------------ Nothing Alien Tech Used ----------------- None Achievements -------------- None Challenges ------------ None Game ------ Seed ServoAlertKinecellerator Manual? 0 Play Time 00:10:04 Cumulative 14.9 hours Start 2024.08.22 @ 19:31:22 End 2024.08.22 @ 19:44:41 Sessions 1 Manual Loads 0 Difficulty Rogue Special Mode None Game No. 16 Rogue 4 Adventurer 12 Explorer 0 Win Type - Total 0 Types 0/0/0/0/0/0/0/0/0 Lore% 6 Gallery% 14 Achievement% 14 Wizard Run 0 Options --------- Layout 0 ASCII 0 Keyboard 1 Movement Numpad Keybinds 0 Fullscreen 2 Font 24/Smallcaps Map View 113x50 Zoom Use 0% Tactical HUD 0 Map Filters NONE Filters NONE Steam 1 RUN: ef13c504-2fea-46e5-aead-ce6e130f756e